Cogmind - Beta 16 @@@ ROGUE MODE // 2025.11.30 @ 18:39:21 Player: C0-2MO Result: Heading to fleet! Performance ------------- Evolutions (9) 4500 Regions Visited (18) 3600 Robots Destroyed (314) 1570 Value Destroyed (21338) 21338 Prototype IDs (101) 2020 Alien Tech Used (15) 3000 Bonus (39909) 39909 TOTAL SCORE: 75937 Bonus ------- Triggered High Security 1000 Triggered Max Security 2000 High Alert Combat Kills 14989 Follower Combat Kills 2320 Forged Quantum Companion 2000 Registered with UFD 300 Met Optimus in HQ 500 Met Zhirov 300 Found Hidden Lab 3000 Used Core Reset Matrix 3000 Scanned by Researcher 500 Pursued by Intercept 1500 Integrated Exoskeleton 5000 Destroyed MAIN.C Guards 500 Win 3000 Cogmind --------- Core Integrity 63/1850 Matter 265/300 Energy 196/200 System Corruption 0% +Membrane Temperature Cool (0) +ITN Movement Walking (30) Location To Fleet Rendezvous Parts ------- > --- POWER (1) -------- (None) > --- PROPULSION (3) --- Sigix Exoskeleton > --- UTILITY (6) ------ Reaction Control System Advanced Phase Shifter Improved Cloaking Device Advanced Cloaking Device Graphene Brace > --- WEAPON (1) ------- Superquantum Companion > --- INVENTORY (5) ---- Advanced Cryofiber Web Experimental Heat Sink Advanced Force Booster Advanced Force Field Peak State ------------ > --- POWER ------------ Light Quantum Reactor > --- PROPULSION ------- Sigix Exoskeleton > --- UTILITY ---------- Advanced Melee Analysis Suite Nanoactuators Experimental Phase Shifter Advanced Cloaking Device Graphene Brace Core Physics Calibrator > --- WEAPON ----------- Superquantum Companion > --- INVENTORY -------- Quantum Shading Machine Transdimensional Reconstructor [Rating: 238] Favorites ----------- Power Subdweller Power Source Engine Subdweller Power Source Power Core Micro Fission Core Reactor Light Antimatter Reactor Propulsion Impulse Thruster Treads Light Treads Leg Sigix Exoskeleton Wheel Compact Wheel Hover Unit Antigrav System Flight Unit Impulse Thruster Utility Advanced Melee Analysis Suite Device Graphene Brace Storage Huge Storage Unit Processor Advanced Melee Analysis Suite Hackware Hacking Suite Protection Scrap Shield Artifact Core Physics Calibrator Weapon Companion Sword Energy Gun Subdweller Laser Ballistic Gun Subdweller Machine Gun Special Weapon LU-1G1's Laser Shovel Slashing Weapon Companion Sword Special Melee Weapon Datajack Build | -11 -10 -10 -7 -7 -5 -4 -4 -4 -4 -3 -3 -3 -3 -2 -2 -2 -1 -1 ------- Run | Yrd Mat Sub Rec Scr Fac Fac Upp Upp Zhi Pro Res Arm Lab Res Qua Sec Acc Com Slots Evolved 18 | . . . . . 10 2 . . . . 2 . . 2 . . 2 . Power 1 | . . . . . . . . . . . 1 . . . . . . . Propulsion 7 | . . . . . 5 . . . . . 1 . . 1 . . . . Utility 11 | . . . . . 5 2 . . . . . . . 1 . . 3 . Weapon -1 | . . . . . . . . . . . . . . . . . -1 . Parts Attached 227 | 6 8 22 . 8 10 30 3 . 7 7 27 19 5 17 3 12 34 9 Power 24 | 1 1 3 . 1 1 5 . . 1 . 1 3 1 4 . 1 1 . Engine 7 | 1 1 3 . 1 1 . . . . . . . . . . . . . Core 3 | . . . . . . 2 . . . . . . . . . . 1 . Reactor 14 | . . . . . . 3 . . 1 . 1 3 1 4 . 1 . . Propulsion 60 | 2 2 3 . 3 2 10 . . 3 4 12 10 . 5 2 2 . . Treads 3 | 2 . 1 . . . . . . . . . . . . . . . . Leg 4 | . . . . . . . . . 3 . . 1 . . . . . . Wheel 11 | . 2 2 . 3 . 4 . . . . . . . . . . . . Hover 5 | . . . . . . 1 . . . 4 . . . . . . . . Flight 37 | . . . . . 2 5 . . . . 12 9 . 5 2 2 . . Utility 128 | 1 5 6 . 2 7 15 3 . 3 3 14 6 4 8 1 8 33 9 Device 76 | . 3 2 . . . 9 1 . 1 2 9 5 1 4 1 4 26 8 Storage 6 | 1 2 1 . 1 . . . . . . . . . 1 . . . . Processor 23 | . . 1 . . 3 5 . . . . 2 . 1 2 . 2 6 1 Hackware 8 | . . . . . 3 . . . 1 . 1 . 1 1 . . 1 . Protection 13 | . . 2 . 1 1 1 2 . 1 1 2 1 1 . . . . . Artifact 2 | . . . . . . . . . . . . . . . . 2 . . Weapon 15 | 2 . 10 . 2 . . . . . . . . . . . 1 . . Energy Gun 6 | 2 . 4 . . . . . . . . . . . . . . . . Energy Cannon . | . . . . . . . . . . . . . . . . . . . Ballistic Gun 5 | . . 5 . . . . . . . . . . . . . . . . Ballistic Cannon . | . . . . . . . . . . . . . . . . . . . Launcher . | . . . . . . . . . . . . . . . . . . . Special Weapon 1 | . . . . 1 . . . . . . . . . . . . . . Impact Weapon . | . . . . . . . . . . . . . . . . . . . Slashing Weapon 2 | . . . . 1 . . . . . . . . . . . 1 . . Piercing Weapon . | . . . . . . . . . . . . . . . . . . . Special Melee Weapon 1 | . . 1 . . . . . . . . . . . . . . . . Unidentified Prototypes 24 | . . . . 2 . 3 1 . 5 . 5 1 4 . . 2 1 . Parts Lost 72 | . 1 3 . . 1 17 6 2 . 4 10 7 2 15 . 1 3 . Power 12 | . 1 . . . . 4 1 . . . . 2 2 2 . . . . Propulsion 24 | . . . . . . 6 1 . . 1 6 2 . 8 . . . . Utility 34 | . . 1 . . 1 7 4 2 . 3 4 3 . 5 . 1 3 . Weapon 2 | . . 2 . . . . . . . . . . . . . . . . Highest Loss Streak 9 | . 1 3 . . 1 7 4 2 . 2 9 2 2 6 . 1 1 . To Critical Strikes . | . . . . . . . . . . . . . . . . . . . Average Backups 7 | . 9 7 12 14 5 6 3 4 3 4 4 4 4 5 4 4 4 4 Power . | . 2 1 . 1 1 1 . . . . . . . . . . . . Propulsion . | . 1 . 3 2 . . . . . . . . . . . . . . Utility 3 | . 4 2 5 7 2 1 1 1 1 1 1 2 1 2 1 1 3 3 Weapon . | . . 1 3 1 . . . 1 . . . . . . . . . . Tool/Special . | . . . . . . . . . . . . . . . . . . . Unused Backups 35 | . . 10 . 8 1 4 . 1 . 1 1 . 1 1 1 3 2 1 Power 6 | . . 3 . 1 1 1 . . . . . . . . . . . . Propulsion 4 | . . 1 . . . . . . . 1 1 . . . . 1 . . Utility 14 | . . 3 . 6 . 1 . . . . . . 1 . . . 2 1 Weapon 7 | . . 3 . 1 . . . 1 . . . . . 1 1 . . . Tool/Special 4 | . . . . . . 2 . . . . . . . . . 2 . . Average Slot Usage (%) 80 | . 97 89 100 78 40 61 65 68 69 77 83 83 78 71 66 76 79 76 Engine 5 | . 13 14 14 9 4 1 . . . . . . . . . . . . Reactor 3 | . . . . . . 1 2 . 2 5 7 8 4 6 7 9 9 8 Treads 3 | . 21 10 . . . . . . . . . . . . . . . . Leg 1 | . . . . . . . . . 9 13 . . . . . 6 9 9 Wheel 9 | . 7 17 28 21 . 2 19 20 15 13 1 . . . . . . . Flight 5 | . . . . . 7 9 . . . . 26 28 26 17 12 10 . . Device 13 | . 12 3 . . . 10 11 14 10 9 14 18 18 16 21 20 43 37 Storage 4 | . 14 4 14 14 . 2 . . . . . . . 1 . . . . Processor 8 | . . 1 14 10 8 17 10 10 10 10 12 10 12 15 17 6 9 12 Hackware 2 | . . . . . 5 8 5 5 7 10 9 5 7 6 4 1 . . Protection 3 | . . 8 . 3 7 1 5 9 7 8 3 5 3 1 . . . . Energy Gun 5 | . 27 10 14 3 . . . . . . . . . . . . . . Ballistic Gun 3 | . . 15 14 3 . . . . . . . . . . . . . . Slashing Weapon 4 | . . . . 10 4 3 4 5 5 5 4 4 4 4 4 7 8 9 Peak Build Rating 238 | 6 8 18 18 37 88 140 117 103 108 121 114 140 140 179 149 228 238 230 Average Rating 89 | 4 7 12 18 23 83 107 99 99 94 108 101 122 138 140 134 209 228 223 On Entrance 92 | . 6 8 18 18 31 88 112 103 82 108 98 108 135 140 110 149 221 216 Avg Prop Armor Cover (%) 5 | 32 11 6 6 7 . 1 2 1 10 10 5 1 . 5 . . . . Naked Turns . | . . . . . . . . . . . . . . . . . . . Heaviest Build 96 | 12 48 93 93 96 16 49 53 37 27 40 42 51 48 70 38 34 44 42 Greatest Support 102 | 40 40 40 36 36 28 72 56 56 56 52 49 58 58 102 69 83 60 60 Greatest Overweight (x) 5 | 2 4 2 5 5 . 1 1 . . 1 2 . . 2 . . . . Average Overweight (x) . | . 1 . 2 2 . . . . . . . . . . . . . . Largest Inventory Capacity 25 | 8 20 25 25 25 15 15 5 5 5 5 5 5 5 15 5 5 5 5 Average Capacity 10 | 6 14 9 25 23 5 10 5 5 5 5 5 5 5 9 5 5 5 5 Most Carried 25 | 1 15 17 18 25 11 12 5 5 4 5 5 5 5 10 5 5 5 5 Average Carried 8 | . 9 8 17 18 5 6 3 4 3 4 4 4 4 5 4 4 4 4 Final Capacity 25 | 8 15 25 25 15 5 5 5 5 5 5 5 5 5 5 5 5 5 5 Final Carried 18 | 1 15 17 18 15 5 4 5 3 4 4 5 5 5 4 4 5 4 4 Scrap Suit Usage (%) 1 | . . . . . . 14 1 . . . . . . . . . . . Parts Cannibalized 7 | . . . . . . 7 . . . . . . . . . . . . Class Distribution -------------------- 22% | Mutant 15% | Alien-Sigix 15% | Scavenger-Mutant 11% | Subdweller-Mutant 7% | Hacker-Mutant 6% | Hacker-Sprinter 4% | Scavenger-Scrapper 4% | Commander-Ninja 3% | Scavenger-Scout Dominant Class ---------------- Mutant | -10/Materials Subdweller-Mutant | -10/Subcaves Scavenger-Mutant | -7/Recycling Mutant | -7/Scraptown Hacker-Mutant | -5/Factory Hacker-Mutant | -4/Factory Scavenger-Scrapper | -4/Upper Caves Scavenger-Scrapper | -4/Upper Caves Hacker-Mutant | -4/Zhirov Hacker-Mutant | -3/Proximity Caves Scavenger-Scout | -3/Research Commander-Ninja | -3/Armory Hacker-Sprinter | -3/Lab Hacker-Scout | -2/Research Hacker-Ninja | -2/Quarantine Alien-Sigix | -2/Section 7 Alien-Sigix | -1/Access Alien-Sigix | -1/Command Resources | -11 -10 -10 -7 -7 -5 -4 -4 -4 -4 -3 -3 -3 -3 -2 -2 -2 -1 -1 ----------- Run | Yrd Mat Sub Rec Scr Fac Fac Upp Upp Zhi Pro Res Arm Lab Res Qua Sec Acc Com Matter Collected 3493 | 260 235 639 . 80 . 459 105 37 115 109 220 344 86 124 . 225 410 45 Remotely . | . . . . . . . . . . . . . . . . . . . Salvage Created 20589 | 98 626 815 69 . . 1644 559 107 227 431 570 1597 86 438 . 378 12095 849 Parts 643 | 2 25 58 2 . . 75 20 4 1 19 33 87 8 27 . 16 231 35 Haulers Intercepted 6 | . 2 . . . . 2 . . . . . . . 1 . . 1 . Recyclers Shooed 1 | . . . . . . 1 . . . . . . . . . . . . Parts Field Recycled . | . . . . . . . . . . . . . . . . . . . Retrieved Matter . | . . . . . . . . . . . . . . . . . . . Parts Self-Destructed 40 | . . 12 . . . . 12 4 . 12 . . . . . . . . Prevented 4 | . . 2 . . . . 2 . . . . . . . . . . . Parts Restored . | . . . . . . . . . . . . . . . . . . . Kills | -11 -10 -10 -7 -7 -5 -4 -4 -4 -4 -3 -3 -3 -3 -2 -2 -2 -1 -1 ------- Run | Yrd Mat Sub Rec Scr Fac Fac Upp Upp Zhi Pro Res Arm Lab Res Qua Sec Acc Com Combat Hostiles Destroyed 256 | . 9 22 . . . 17 9 3 . 7 5 18 1 3 . 3 138 21 Melee 190 | . . . . . . 17 9 3 . 7 5 18 1 3 . 2 114 11 Guns 30 | . 6 22 . . . . . . . . . . . . . . 1 1 Cannons 12 | . . . . . . . . . . . . . . . . . 7 5 AOE 2 | . 2 . . . . . . . . . . . . . . . . . Classes Destroyed 29 | 1 4 5 . . . 5 . . . . 1 1 . 1 . 1 10 . Worker 1 | . 1 . . . . . . . . . . . . . . . . . Builder 5 | . . . . . . 2 . . . . 1 . . 1 . . 1 . Tunneler 1 | . . . . . . . . . . . . . . 1 . . . . Hauler 6 | . 2 . . . . 2 . . . . . . . 1 . . 1 . Recycler 8 | 1 . . 1 . . 1 . . . . 1 . . . . 1 3 . Mechanic 6 | . . . . . . 1 . . . . . 1 . . . . 4 . Operator 7 | . . . . . . . . . . . 1 3 . . . . 2 1 Turret 2 | . . 2 . . . . . . . . . . . . . . . . Watcher 20 | . 2 . . . . 2 . . . . 3 3 . 3 . . 6 1 Swarmer 34 | . . 6 . . . . 4 2 . 2 3 2 . . . . 3 12 Cutter 3 | . . . . . . . . . . . . . . . . . 3 . Saboteur 1 | . . . . . . . . . . . . . . . . . 1 . Grunt 83 | . 9 2 . . . 4 5 . . . . 7 . . . . 56 . Brawler 7 | . . . . . . . . . . . . . . . . . 7 . Duelist 4 | . . . . . . . . . . . . . . . . . 4 . Protector 2 | . . . . . . . . . . . . . . . . . 2 . Sentry 9 | . . 1 . . . 2 . . . 1 . 2 . . . . 3 . Demolisher 1 | . . . . . . . . . . . . 1 . . . . . . Specialist 2 | . . . . . . . . . . . . . . . . . 2 . Hunter 16 | . . . . . . 5 . . . . 2 3 . . . . 4 2 Programmer 38 | . . . . . . 5 . 1 . 4 . 1 . 1 . . 23 3 Heavy 1 | . . . . . . . . . . . . . . . . . 1 . Behemoth 1 | . . . . . . . . . . . . . . . . . 1 . Armor Guard 2 | . . . . . . . . . . . . 2 . . . . . . M Guard 2 | . . . . . . . . . . . . . . . . . . 2 Tracker 12 | . . . . . . . . . . . . . . 2 . 1 9 . Combat Programmer 11 | . . . . . . . . . . . . . . . . . 9 2 Investigator 2 | . . . . . . . . . . . . . . . . . 2 . Striker 1 | . . . . . . . . . . . . . . . . . 1 . Executioner 11 | . . . . . . . . . . . . . . . . 2 9 . Artisan 2 | . . 2 . . . . . . . . . . . . . . . . Subdweller 13 | . . 13 . . . . . . . . . . . . . . . . Scrapoid 1 | . . . . . . 1 . . . . . . . . . . . . Decomposer 1 | . . . . . . . 1 . . . . . . . . . . . Best Kill Streak 65 | 1 3 4 1 . . 4 4 3 . 1 5 5 1 3 . 2 65 12 Combat Bots Only 62 | . 2 4 . . . 4 4 3 . 1 5 4 1 2 . 2 62 11 Max Kills in Single Turn 2 | 1 2 1 1 . . 1 1 1 . 1 1 1 1 1 . 1 2 1 Gunslinging . | . . . . . . . . . . . . . . . . . . . Exploded 2 | . 2 . . . . . . . . . . . . . . . . . Melee 2 | . . . . . . 1 1 1 . 1 1 1 1 1 . 1 2 1 Uniques/NPCs Destroyed 1 | . . . . . . . . . . . . . 1 . . . . . A5 (-3/Lab) Combat | -11 -10 -10 -7 -7 -5 -4 -4 -4 -4 -3 -3 -3 -3 -2 -2 -2 -1 -1 -------- Run | Yrd Mat Sub Rec Scr Fac Fac Upp Upp Zhi Pro Res Arm Lab Res Qua Sec Acc Com Hostile Shots Fired 2867 | . 32 162 . . 10 243 141 52 . 101 71 102 26 187 4 39 1419 278 Missed 1308 | . 9 56 . . 4 80 35 11 . 28 25 46 5 84 1 12 768 144 Deflected 60 | . . . . . . . . . . . . . . . . 5 49 6 Hits 1559 | . 23 106 . . 6 163 106 41 . 73 46 56 21 103 3 27 651 134 Melee 56 | . . . . . 3 . . 5 . . . 1 . . . . 47 . Projectile 1503 | . 23 106 . . 3 163 106 36 . 73 46 55 21 103 3 27 604 134 AOE 25 | . . . . . . . . . . . . 7 . . . . 4 14 Critical Strikes 58 | . . 1 . . 1 8 1 3 . 3 . 5 1 3 . 1 30 1 Actively Blocked 56 | . . . . . . 8 1 3 . 3 . 5 1 3 . 1 30 1 Part Disruptions 2 | . . . . . . 1 . . . 1 . . . . . . . . Damage Taken 19423 | . 281 1489 . 3 107 2837 1415 871 . 1763 759 1673 414 2262 57 534 3919 1039 Core 3978 | . 32 126 . . 20 305 152 109 . 197 122 251 151 423 . 310 1428 352 Absorbed by Shields 4466 | . . . . . . 360 568 . . . . 452 140 . . . 2211 735 Redirected to Shielding 194 | . . . . . 26 15 . . . 132 21 . . . . . . . Ignored by Resistances 13906 | . . . . . . . . 50 . 25 . . . . . 287 10421 3123 Regen/Repaired (Parts) 873 | . 39 . . . . 66 . . . . 44 212 191 321 . . . . Core Remaining (%) 52 | 100 . . . 36 98 . . . . 33 . . 53 . . 46 . 3 Volleys Fired 194 | 2 40 147 5 . . . . . . . . . . . . . . . Largest 2 | 2 2 2 1 . . . . . . . . . . . . . . . Hottest 90 | 80 80 90 60 . . . . . . . . . . . . . . . Shots Fired 300 | 4 80 211 5 . . . . . . . . . . . . . . . Gun 300 | 4 80 211 5 . . . . . . . . . . . . . . . Cannon . | . . . . . . . . . . . . . . . . . . . Launcher . | . . . . . . . . . . . . . . . . . . . Special . | . . . . . . . . . . . . . . . . . . . Kinetic 79 | . . 79 . . . . . . . . . . . . . . . . Thermal 92 | . . 87 5 . . . . . . . . . . . . . . . Explosive . | . . . . . . . . . . . . . . . . . . . Electromagnetic 129 | 4 80 45 . . . . . . . . . . . . . . . . Robot Hit Streak 19 | 2 12 19 12 . . . . . . . . . . . . . . . Robot Miss Streak 5 | 1 2 5 1 . . . . . . . . . . . . . . . Penetration Max . | . . . . . . . . . . . . . . . . . . . Secondary Targets 3 | . . 3 . . . . . . . . . . . . . . . . Max Gunslinging Chain 1 | . . 1 . . . . . . . . . . . . . . . . Autonomous 81 | . . . . . . . . . . . . . . . . 1 65 15 Shots Hit Robots 1014 | 3 58 123 4 . . 109 41 10 5 53 23 78 19 23 . 12 403 50 Core Hits 391 | 2 25 42 1 1 . 37 15 4 1 10 11 29 6 11 . 4 166 26 Critical Kills 2 | . . 2 . . . . . . . . . . . . . . . . Critical Parts Destroyed 1 | . . . 1 . . . . . . . . . . . . . . . Critical Strikes 35 | . 5 5 1 . . 2 . . . 2 . . . . . . 20 . Destroy 6 | . . 5 1 . . . . . . . . . . . . . . . Corrupt 5 | . 5 . . . . . . . . . . . . . . . . . Melee Attacks 1140 | . . . . 2 2 142 53 15 5 60 37 115 28 38 5 20 538 80 Impact . | . . . . . . . . . . . . . . . . . . . Slashing 1140 | . . . . 2 2 142 53 15 5 60 37 115 28 38 5 20 538 80 Piercing . | . . . . . . . . . . . . . . . . . . . Sneak Attacks 47 | . . . . . . 9 1 . . 1 2 12 . 4 . 2 15 1 Combat Hostiles 5 | . . . . . . . . . . . . 3 . . . 1 1 . Follow-up Attacks 27 | . . . . . . . . . 1 2 . . . 2 . . 19 3 Damage Inflicted 67846 | 40 992 2209 79 7 . 5115 1777 426 468 2356 1249 4112 959 1220 . 1143 40175 5519 Guns 3175 | 40 847 2209 79 . . . . . . . . . . . . . . . Cannons 6908 | . . . . . . . . . . . . . . . . 72 5551 1285 Explosions 145 | . 145 . . . . . . . . . . . . . . . . . Melee 57448 | . . . . . . 5115 1777 426 468 2356 1249 4112 959 1220 . 1071 34461 4234 Ramming 170 | . . . . 7 . . . . . . . . . . . . 163 . Kinetic 1074 | . . 1074 . . . . . . . . . . . . . . . . Thermal 979 | . 145 755 79 . . . . . . . . . . . . . . . Explosive . | . . . . . . . . . . . . . . . . . . . Electromagnetic 1267 | 40 847 380 . . . . . . . . . . . . . . . . Impact . | . . . . . . . . . . . . . . . . . . . Slashing 57448 | . . . . . . 5115 1777 426 468 2356 1249 4112 959 1220 . 1071 34461 4234 Piercing . | . . . . . . . . . . . . . . . . . . . Phasic 6908 | . . . . . . . . . . . . . . . . 72 5551 1285 Highest Corruption 21 | . . . . 1 . 9 9 11 11 21 . 3 5 6 6 . . . Average Corruption 7 | . . . . 1 . 7 9 9 11 14 . 1 3 4 6 . . . Corruption Purged . | . . . . . . . . . . . . . . . . . . . Corruption Blocked . | . . . . . . . . . . . . . . . . . . . Effects 82 | . . . . . . 17 18 7 8 15 . 5 1 11 . . . . Message Errors 23 | . . . . . . 4 4 4 1 5 . 2 1 2 . . . . Matter Fused 16 | . . . . . . 1 5 . 6 1 . 2 . 1 . . . . Heat Flow Errors 13 | . . . . . . 1 6 2 . 3 . 1 . . . . . . Energy Discharges 7 | . . . . . . 3 . . . 3 . . . 1 . . . . Parts Fused 2 | . . . . . . . . . . 1 . . . 1 . . . . Data Loss (minor) 10 | . . . . . . 4 1 . . 1 . . . 4 . . . . Data Loss (major) 6 | . . . . . . 3 1 . 1 . . . . 1 . . . . Alerts 4 | . . . . . . 1 1 . . 1 . . . 1 . . . . Misdirections 1 | . . . . . . . . 1 . . . . . . . . . . Overload Shots . | . . . . . . . . . . . . . . . . . . . Overflow Damage 6381 | . . . . . . 564 135 3 248 208 152 385 . 54 . 377 3694 561 Projectiles 579 | . . . . . . . . . . . . . . . . . 493 86 Explosions . | . . . . . . . . . . . . . . . . . . . Melee 5802 | . . . . . . 564 135 3 248 208 152 385 . 54 . 377 3201 475 Knockbacks 1 | . . . . . . . . . . . . . . . . . 1 . Impact 1 | . . . . . . . . . . . . . . . . . 1 . Kinetic . | . . . . . . . . . . . . . . . . . . . Secondary . | . . . . . . . . . . . . . . . . . . . Self-Inflicted Damage 3 | . . . . 3 . . . . . . . . . . . . . . Shots . | . . . . . . . . . . . . . . . . . . . Rammed 1 | . . . . 1 . . . . . . . . . . . . . . Targets Rammed 6 | . . . . 1 . . . . . . . . . . . . 5 . Kicked 5 | . . . . . . . . . . . . . . . . . 5 . Crushed . | . . . . . . . . . . . . . . . . . . . Highest Temperature 251 | 36 156 . 20 . . 175 212 189 . 251 14 165 . . . . . . Average Temperature 46 | 20 48 . 15 . . 33 88 96 . 111 4 38 . . . . . . Received Heat Transfer 2190 | . 159 558 . . 18 250 173 96 . 72 9 68 . 111 . 9 613 54 Siege Activations . | . . . . . . . . . . . . . . . . . . . Martial Activations . | . . . . . . . . . . . . . . . . . . . Shielding Activations . | . . . . . . . . . . . . . . . . . . . Robots Disrupted 10 | . . . . . . 2 1 . . 1 . . . 1 . . 5 . Combat Hostiles 8 | . . . . . . 1 1 . . 1 . . . . . . 5 . Robots Corrupted 4 | . 1 2 . . . . . . . . . . . . . . 1 . Combat Hostiles 2 | . 1 . . . . . . . . . . . . . . . 1 . Parts Fried 6 | 2 3 1 . . . . . . . . . . . . . . . . Impact Corruptions 2 | . . . . . . . . . . . . . . . . . 2 . Robots Melted . | . . . . . . . . . . . . . . . . . . . Combat Hostiles . | . . . . . . . . . . . . . . . . . . . Parts Melted 12 | . . 2 . . . 1 . . . . . 3 . 1 . . 1 4 Heat Transferred 1175 | . 150 925 100 . . . . . . . . . . . . . . . Parts Sabotaged 1 | . . . . . . . . . . . . 1 . . . . . . Parts Stolen . | . . . . . . . . . . . . . . . . . . . Parts Stripped 140 | . . . . . . . . . . . . . . . . 7 118 15 Power Chain Reactions 2 | . 2 . . . . . . . . . . . . . . . . . Alert | -11 -10 -10 -7 -7 -5 -4 -4 -4 -4 -3 -3 -3 -3 -2 -2 -2 -1 -1 ------- Run | Yrd Mat Sub Rec Scr Fac Fac Upp Upp Zhi Pro Res Arm Lab Res Qua Sec Acc Com Maximum Alert Level 5 | . . . 1 . . 1 . . . . . 5 . 2 1 5 5 5 Low Security (%) 47 | 100 100 . 17 . 100 98 . . . . 100 19 . 45 . 57 . . Level 1 11 | . . . 82 . . 1 . . . . . 13 . 17 100 1 . . Level 2 3 | . . . . . . . . . . . . 1 . 36 . . . . Level 3 1 | . . . . . . . . . . . . 3 . . . . 2 . Level 4 4 | . . . . . . . . . . . . 30 . . . . 4 . Level 5 3 | . . . . . . . . . . . . 4 . . . . . 47 High Security 6 | . . . . . . . . . . . . 25 . . . . . 52 Max Security 21 | . . . . . . . . . . . . . . . . 41 93 . Sterilizations 1 | . . . . . . . . . . . . . . . . . 1 . Peak Influence 6740 | 5 55 . 322 . 42 219 . . . . 101 2059 . 526 308 1781 6740 4782 Initial 4313 | . . . 291 . . 10 . . . . 2 33 . . 286 159 1100 4313 Average 1167 | 1 15 . 252 . 21 93 . . . . 44 1061 . 259 292 781 3156 4542 Influence Increases 15027 | 5 322 1280 161 . 62 837 215 205 10 185 356 2915 . 1208 48 479 5997 742 Destroy 0b10 Robot/C 5940 | . 180 220 . . . 380 180 60 . 140 100 1120 . 160 . 60 2820 520 Destroy 0b10 Robot/NC 315 | 5 25 . 5 . . 45 . . 10 . 30 45 . 35 . 5 100 10 Destroy Leader 1186 | . 38 10 . . . 90 20 10 . 30 26 228 . 48 . 10 594 82 Allied During Kill 1249 | . . . . . . 35 . . . . . 1073 . 45 . . 56 40 Successful Hack 226 | . 27 . 6 . . 10 . . . . 52 42 . 28 . 61 . . Select Force Hacks 180 | . 30 . 150 . . . . . . . . . . . . . . . Disable Machine 435 | . 15 . . . . . . . . . 30 165 . . 30 150 45 . Destroy Structure 726 | . 7 . . . 2 52 . . . . 28 122 . 202 18 88 177 30 Partial Spotted 240 | . . . . . . 30 . . . . . 45 . 120 . 15 30 . Lose Combat Pursuer 4530 | . . 1050 . . 60 195 15 135 . 15 90 75 . 570 . 90 2175 60 Influence Decreases 12270 | 5 287 707 611 158 40 659 415 80 135 181 295 956 2024 698 274 415 1553 2777 Entered New Map 6251 | . . 18 317 158 . 12 74 . 125 . 2 32 2024 . 224 125 713 2427 Time Decay 3264 | 5 277 659 294 . 40 382 261 60 10 141 203 334 . 288 50 100 50 110 Search Patrol Dispatched 100 | . . . . . . . . . . . . . . 100 . . . . Lost Part 675 | . 10 30 . . . 165 60 20 . 40 90 70 . 150 . 10 30 . Lost Ally 1830 | . . . . . . 100 20 . . . . 520 . 160 . 30 760 240 Purge Threat 150 | . . . . . . . . . . . . . . . . 150 . . Squads Dispatched 165 | . 1 . . . 2 11 . 1 . . 5 15 . 14 . 15 90 11 Investigation 21 | . 1 . . . 1 4 . . . . 3 3 . 8 . 1 . . Extermination 12 | . . . . . . 3 . . . . 2 2 . 2 . 1 1 1 Reinforcement 17 | . . . . . 1 4 . . . . . 1 . 2 . . 7 2 Assault 103 | . . . . . . . . 1 . . . 9 . . . 12 73 8 Garrison 6 | . . . . . . . . . . . . . . . . . 6 . Intercept 6 | . . . . . . . . . . . . . . 2 . 1 3 . Searches Triggered 1 | . . . . . . . . . . . . . . 1 . . . . Construction Impeded . | . . . . . . . . . . . . . . . . . . . Haulers Reinforced 2 | . . . . . . 2 . . . . . . . . . . . . Active Scanning Responses . | . . . . . . . . . . . . . . . . . . . Cargo Convoy Interrupts . | . . . . . . . . . . . . . . . . . . . Stealth | -11 -10 -10 -7 -7 -5 -4 -4 -4 -4 -3 -3 -3 -3 -2 -2 -2 -1 -1 --------- Run | Yrd Mat Sub Rec Scr Fac Fac Upp Upp Zhi Pro Res Arm Lab Res Qua Sec Acc Com Distress Signals 23 | . . . . . 1 4 . . . . 1 2 . 4 . 3 7 1 Communications Jammed 6 | . . . . . . . . . . . . 6 . . . . . . Distress Signals . | . . . . . . . . . . . . . . . . . . . Times Spotted 742 | . 12 64 . 4 10 44 12 19 . 9 18 74 1 56 2 29 346 42 Peak Tracking Total 71 | . 3 3 . 2 7 7 5 11 . 3 8 14 1 20 2 15 71 14 Tactical Retreats 71 | . . 6 . . 2 7 1 2 . 1 2 3 . 13 . 3 30 1 Traps | -11 -10 -10 -7 -7 -5 -4 -4 -4 -4 -3 -3 -3 -3 -2 -2 -2 -1 -1 ------- Run | Yrd Mat Sub Rec Scr Fac Fac Upp Upp Zhi Pro Res Arm Lab Res Qua Sec Acc Com Traps Triggered 13 | . . 1 . . . . . . . . . . . 3 1 . 7 1 Indirectly . | . . . . . . . . . . . . . . . . . . . Trap Hack Attempts 57 | . . 57 . . . . . . . . . . . . . . . . Triggered 1 | . . 1 . . . . . . . . . . . . . . . . Disarmed . | . . . . . . . . . . . . . . . . . . . Reprogrammed 2 | . . 2 . . . . . . . . . . . . . . . . Reused 1 | . . 1 . . . . . . . . . . . . . . . . Traps Extracted . | . . . . . . . . . . . . . . . . . . . Installed . | . . . . . . . . . . . . . . . . . . . Triggered 1 | . . 1 . . . . . . . . . . . . . . . . Machines | -11 -10 -10 -7 -7 -5 -4 -4 -4 -4 -3 -3 -3 -3 -2 -2 -2 -1 -1 ---------- Run | Yrd Mat Sub Rec Scr Fac Fac Upp Upp Zhi Pro Res Arm Lab Res Qua Sec Acc Com Machines Disabled 40 | . 2 2 . 4 . . . 1 . . 2 11 1 1 2 11 3 . Max in Single Turn 1 | . 1 1 . 1 . . . 1 . . 1 1 1 1 1 1 1 . Garrison Access 1 | . . . . . . . . . . . . . . 1 . . . . Machines Repaired . | . . . . . . . . . . . . . . . . . . . Machines Dismantled . | . . . . . . . . . . . . . . . . . . . Machines Sabotaged . | . . . . . . . . . . . . . . . . . . . Overloaded Fab Kills . | . . . . . . . . . . . . . . . . . . . Hacking | -11 -10 -10 -7 -7 -5 -4 -4 -4 -4 -3 -3 -3 -3 -2 -2 -2 -1 -1 --------- Run | Yrd Mat Sub Rec Scr Fac Fac Upp Upp Zhi Pro Res Arm Lab Res Qua Sec Acc Com Machines Accessed 93 | . 10 2 9 1 3 10 2 1 4 . 11 13 . 14 4 6 1 2 Terminals 49 | . 8 . 4 . 1 4 1 . . . 6 11 . 5 4 4 . 1 Fabricators 2 | . . . . . 1 1 . . . . . . . . . . . . Repair Stations 6 | . 1 . . . . . . . . . 1 1 . 3 . . . . Recycling Units 17 | . 1 . 5 . . 4 . . . . 1 1 . 4 . . . 1 Scanalyzers 8 | . . . . . 1 1 . . . . 2 . . 1 . 2 1 . Garrison Access 2 | . . . . . . . . . . . 1 . . 1 . . . . Total Hacks 205 | . 25 4 19 2 8 13 2 1 17 . 30 26 . 28 8 17 1 4 Successful 114 | . 18 4 10 2 3 7 2 1 17 . 10 8 . 15 4 13 . . Failed 91 | . 7 . 9 . 5 6 . . . . 20 18 . 13 4 4 1 4 Catastrophic 15 | . . . 4 . . . . . . . 3 4 . 2 . 1 1 . Database Lockouts . | . . . . . . . . . . . . . . . . . . . Manual 132 | . 19 . 15 . 5 10 . . . . 19 23 1 19 8 9 . 4 Terminals 119 | . 22 . 14 . 5 6 1 . . . 15 22 . 12 8 12 . 2 Fabricators 2 | . . . . . 1 1 . . . . . . . . . . . . Repair Stations 8 | . 2 . . . . . . . . . 1 1 . 4 . . . . Recycling Units 24 | . 1 . 5 . . 4 . . . . 4 3 . 5 . . . 2 Scanalyzers 25 | . . . . . 2 2 . . . . 9 . . 6 . 5 1 . Garrison Access 2 | . . . . . . . . . . . 1 . . 1 . . . . Terminal Hacks 42 | . 7 4 2 2 . . 2 1 17 . 1 2 . 1 . 3 . . Record 13 | . 1 3 . 1 . . 1 1 5 . . 1 . . . . . . Part Schematic 6 | . 1 . . . . . . . 4 . . . . . . 1 . . Robot Analysis 10 | . 5 . 1 . . . . . 4 . . . . . . . . . Prototype ID Bank 4 | . . . . . . . . . 4 . . . . . . . . . Open Door 3 | . . . . 1 . . 1 . . . . 1 . . . . . . Branch Access Points 2 | . . . . . . . . . . . 1 . . 1 . . . . Terminal Index 1 | . . . 1 . . . . . . . . . . . . . . . Unreport Threat 1 | . . . . . . . . . . . . . . . . 1 . . Zone Layout 1 | . . . . . . . . . . . . . . . . 1 . . Proto ID Catalog 1 | . . 1 . . . . . . . . . . . . . . . . Fabricator Hacks 2 | . . . . . 1 1 . . . . . . . . . . . . Network Status 2 | . . . . . 1 1 . . . . . . . . . . . . Repair Station Hacks 4 | . 2 . . . . . . . . . . . . 2 . . . . Scan Component 2 | . 1 . . . . . . . . . . . . 1 . . . . Repair 2 | . 1 . . . . . . . . . . . . 1 . . . . Recycling Unit Hacks . | . . . . . . . . . . . . . . . . . . . Scanalyzer 6 | . . . . . . . . . . . 1 . . 3 . 2 . . Retrieve Study 6 | . . . . . . . . . . . 1 . . 3 . 2 . . Garrison Access Hacks 1 | . . . . . . . . . . . . . . 1 . . . . Seal Access 1 | . . . . . . . . . . . . . . 1 . . . . Unauthorized Hacks 58 | . 9 . 8 . 2 6 . . . . 8 5 . 8 4 8 . . Terminals 38 | . 8 . 3 . 2 2 . . . . 6 3 . 2 4 8 . . Assimilate 3 | . . . . . . . . . . . . . . . . 3 . . Botnet 13 | . 3 . 1 . 1 2 . . . . 2 1 . 1 1 1 . . Skim 22 | . 5 . 2 . 1 . . . . . 4 2 . 1 3 4 . . Fabricators . | . . . . . . . . . . . . . . . . . . . Repair Stations 4 | . . . . . . . . . . . 1 1 . 2 . . . . Patch 4 | . . . . . . . . . . . 1 1 . 2 . . . . Recycling Units 16 | . 1 . 5 . . 4 . . . . 1 1 . 4 . . . . Tunnel 6 | . 1 . 5 . . . . . . . . . . . . . . . Fedlink 6 | . . . . . . 3 . . . . 1 . . 2 . . . . Scrapoids 4 | . . . . . . 1 . . . . . 1 . 2 . . . . Scanalyzers . | . . . . . . . . . . . . . . . . . . . Garrison Access . | . . . . . . . . . . . . . . . . . . . Data Cores Recovered 3 | . . . . . . . . . . . . 3 . . . . . . Used . | . . . . . . . . . . . . . . . . . . . Hacking Detections 62 | . 9 . 4 . 2 6 . . . . 10 11 . 7 4 6 1 2 Full Trace Events 6 | . . . 1 . 1 . . . . . 1 . . 2 . 1 . . Feedback Events 1 | . . . . . 1 . . . . . . . . . . . . . Hackware Fried 1 | . . . . . 1 . . . . . . . . . . . . . Feedback Blocked . | . . . . . . . . . . . . . . . . . . . Robot Schematics Acquired . | . . . . . . . . . . . . . . . . . . . Robots Built . | . . . . . . . . . . . . . . . . . . . Authchips . | . . . . . . . . . . . . . . . . . . . Time . | . . . . . . . . . . . . . . . . . . . Total Robot Build Rating . | . . . . . . . . . . . . . . . . . . . Part Schematics Acquired 6 | . 1 . . . . . . . 4 . . . . . . 1 . . Parts Built . | . . . . . . . . . . . . . . . . . . . Authchips . | . . . . . . . . . . . . . . . . . . . Time . | . . . . . . . . . . . . . . . . . . . Total Part Build Rating . | . . . . . . . . . . . . . . . . . . . Part Studies Acquired 6 | . . . . . . . . . . . 1 . . 3 . 2 . . Parts Repaired 2 | . 1 . . . . . . . . . . . . 1 . . . . Time 94 | . 26 . . . . . . . . . . . . 68 . . . . Parts Recycled . | . . . . . . . . . . . . . . . . . . . Recycled Matter . | . . . . . . . . . . . . . . . . . . . Retrieved Matter . | . . . . . . . . . . . . . . . . . . . Retrieved Components . | . . . . . . . . . . . . . . . . . . . Parts Scanalyzed . | . . . . . . . . . . . . . . . . . . . Part Schematics Acquired . | . . . . . . . . . . . . . . . . . . . Parts Damaged . | . . . . . . . . . . . . . . . . . . . Bothacking | -11 -10 -10 -7 -7 -5 -4 -4 -4 -4 -3 -3 -3 -3 -2 -2 -2 -1 -1 ------------ Run | Yrd Mat Sub Rec Scr Fac Fac Upp Upp Zhi Pro Res Arm Lab Res Qua Sec Acc Com Used RIF Installer . | . . . . . . . . . . . . . . . . . . . Robots Hacked . | . . . . . . . . . . . . . . . . . . . Non-combat . | . . . . . . . . . . . . . . . . . . . Combat . | . . . . . . . . . . . . . . . . . . . Robot Hacks Applied . | . . . . . . . . . . . . . . . . . . . Relay Couplers Released . | . . . . . . . . . . . . . . . . . . . Fabnet Peak Effective % . | . . . . . . . . . . . . . . . . . . . Robots Rewired 21 | . . . . . . 1 1 . . . . 16 . . . . 3 . Allies Hacked 4 | . . . . . . . . . . . . 2 . 2 . . . . Hacks Repelled . | . . . . . . . . . . . . . . . . . . . Allies | -11 -10 -10 -7 -7 -5 -4 -4 -4 -4 -3 -3 -3 -3 -2 -2 -2 -1 -1 -------- Run | Yrd Mat Sub Rec Scr Fac Fac Upp Upp Zhi Pro Res Arm Lab Res Qua Sec Acc Com Total Allies 168 | . . . . . . 6 1 . . . . 31 . 10 . 3 66 51 Largest Group 20 | . . . . . . 5 1 . . . . 20 . 5 . 2 7 10 Highest-Rated Group 1068 | . . . . . . 235 30 . . . . 1068 . 323 . 71 219 141 Highest-Rated Ally 219 | . . . . . . 49 30 . . . . 89 . 67 . 45 219 15 Total Orders 20 | . . . . . . . . . . . . 20 . . . . . . STAY 20 | . . . . . . . . . . . . 20 . . . . . . Ally Attacks 583 | . . . . . . 55 1 . . . . 345 . 73 . . 67 42 Total Damage 15166 | . . . . . . 1167 16 . . . . 9836 . 2094 . . 1355 698 Kills 61 | . . . . . . 3 . . . . . 42 . 6 . . 4 6 Allies Corrupted 8 | . . . . . . . . . . . . 5 . 1 . . . 2 Allies Melted . | . . . . . . . . . . . . . . . . . . . Intel | -11 -10 -10 -7 -7 -5 -4 -4 -4 -4 -3 -3 -3 -3 -2 -2 -2 -1 -1 ------- Run | Yrd Mat Sub Rec Scr Fac Fac Upp Upp Zhi Pro Res Arm Lab Res Qua Sec Acc Com Active Infowar (turns) 5205 | . 194 21 . . 105 956 . . . . 322 1000 477 680 116 327 836 171 Optics 713 | . . . . . 105 607 . . . . . . . . . 1 . . Sensors 1984 | . . . . . . . . . . . 322 954 . 441 116 151 . . IFF 2 | . . . . . . . . . . . . . . . . . 2 . Terrain 87 | . . . . . . 87 . . . . . . . . . . . . Structural 3272 | . . . . . . 786 . . . . 254 1000 477 607 116 32 . . Seismic 216 | . 194 21 . . . . . . . . . . . . . . 1 . T.N.C. 62 | . . . . . . 62 . . . . . . . . . . . . Triangulation 2 | . . . . . . . . . . . . . . . . . 2 . Cloaking 2000 | . . . . . . 20 . . . . . 383 23 349 . 218 836 171 Jamming 562 | . . . . . . . . . . . . 332 2 . 98 130 . . ECM 3 | . . . . . . . . . . . . . . . . . 3 . Robot Analysis Total 10 | . 5 . 1 . . . . . 4 . . . . . . . . . Derelict Logs Recovered 7 | . . 2 . 5 . . . . . . . . . . . . . . Drone Launches . | . . . . . . . . . . . . . . . . . . . Drone Recoveries . | . . . . . . . . . . . . . . . . . . . Exploration | -11 -10 -10 -7 -7 -5 -4 -4 -4 -4 -3 -3 -3 -3 -2 -2 -2 -1 -1 ------------- Run | Yrd Mat Sub Rec Scr Fac Fac Upp Upp Zhi Pro Res Arm Lab Res Qua Sec Acc Com Turns Passed 14369 | 69 1153 2617 656 2001 111 1082 595 190 163 420 530 1000 477 713 116 348 1658 470 Spaces Moved 15181 | 48 670 1543 459 1249 270 1265 516 182 161 272 1106 1607 207 1553 259 811 2104 899 Core 35 | 25 . . . . . 3 . . . . . . . 7 . . . . Treads 331 | 23 266 42 . . . . . . . . . . . . . . . . Legs 3410 | . . . . . . . . . 2 . . . . . . 405 2104 899 Wheels 4885 | . 404 1501 459 1249 . 188 516 182 159 199 28 . . . . . . . Hover 325 | . . . . . . 168 . . . 73 84 . . . . . . . Flight 6180 | . . . . . 270 906 . . . . 994 1607 207 1546 259 391 . . Fastest Speed 19 | 50 110 100 129 115 34 27 70 76 76 48 19 22 25 22 32 25 30 30 Average Speed 60 | 112 140 115 140 144 34 42 75 76 85 86 29 24 25 30 33 27 30 30 Slowest Speed 240 | 160 240 160 175 175 34 100 80 76 120 110 215 28 25 150 37 32 30 30 Overloaded Moves . | . . . . . . . . . . . . . . . . . . . Propulsion Burnouts . | . . . . . . . . . . . . . . . . . . . Robots Hopped 39 | . . . . . 4 4 . . . . 3 5 . 21 . 2 . . Potential Cave-ins 20 | . . . . 2 . . . . . . . . . 10 4 . 4 . Cave-ins Triggered . | . . . . . . . . . . . . . . . . . . . Teleports 3 | . . . . . . . . . . . . . 1 1 . 1 . . Spacefolds 6 | . . . . . . . . . . . . . . . . 6 . . Exploration Rate (%) 55 | 4 98 94 81 75 8 39 63 31 60 43 32 67 92 55 39 70 65 43 Regions Visited 18 Branch Regions 12 Pre-discovered Areas 13 | . 2 1 5 1 . 1 . . 3 . . . . . . . . . Known Exits Taken 11 | . 1 1 . . 1 1 . . . 1 1 1 1 1 1 1 . . Unknown Exits Taken 7 | 1 . . 1 1 . . 1 1 1 . . . . . . . 1 . Scrap Searched 15 | . . 7 . 5 . . 1 1 . 1 . . . . . . . . Spaces Dug 258 | . . 20 . 19 1 10 . . . . 14 22 . 64 10 22 66 10 Terrain Destroyed 262 | . 5 20 . 18 1 10 . . . . 14 22 . 64 10 22 66 10 Melee 99 | . . . . . 1 8 . . . . 10 9 . 7 4 1 49 10 Projectile 20 | . . 20 . . . . . . . . . . . . . . . . AOE 5 | . 5 . . . . . . . . . . . . . . . . . Terrain Rammed . | . . . . . . . . . . . . . . . . . . . Walls Destroyed . | . . . . . . . . . . . . . . . . . . . Machines Disabled . | . . . . . . . . . . . . . . . . . . . Actions | -11 -10 -10 -7 -7 -5 -4 -4 -4 -4 -3 -3 -3 -3 -2 -2 -2 -1 -1 --------- Run | Yrd Mat Sub Rec Scr Fac Fac Upp Upp Zhi Pro Res Arm Lab Res Qua Sec Acc Com Total 19046 | 56 802 2162 466 1452 281 1594 644 213 178 378 1241 2093 607 1733 282 903 2930 1031 Wait 1704 | . 65 319 2 155 . 131 57 13 . 27 50 213 355 116 2 12 158 29 Move 15081 | 47 669 1542 458 1248 263 1256 515 181 160 271 1099 1597 206 1512 258 798 2103 898 Hop 33 | . . . . . 2 4 . . . . 3 4 . 19 . 1 . . Pick Up 103 | 1 13 17 1 17 . 10 4 1 1 4 4 . 2 5 3 10 7 3 Fast Attach 185 | 6 5 11 . 5 3 24 3 . 9 7 24 12 8 14 4 28 17 5 Attach 68 | . 1 8 . . 7 9 5 . . 1 3 2 1 12 3 6 6 4 Detach 36 | . 3 1 . 2 1 6 3 . . . 3 2 . 7 2 2 2 2 Swap 121 | . 4 16 . 3 1 5 . . . . 5 12 3 5 2 4 54 7 Drop 162 | . 2 25 . 19 2 6 3 3 4 8 13 14 4 7 3 22 21 6 Fire 194 | 2 40 147 5 . . . . . . . . . . . . . . . Melee 1108 | . . . . 2 2 142 53 15 4 58 37 115 28 36 5 20 514 77 Ram 1 | . . . . 1 . . . . . . . . . . . . . . Kick 5 | . . . . . . . . . . . . . . . . . 5 . Crush . | . . . . . . . . . . . . . . . . . . . Escape Stasis 24 | . . . . . . . . . . . . . . . . . 24 . Rewire 145 | . . . . . . 1 1 . . 2 . 122 . . . . 19 . Trap 57 | . . 57 . . . . . . . . . . . . . . . . Miscellaneous 19 | . . 19 . . . . . . . . . . . . . . . . Route ------- -11/Scrapyard -10/Materials (discovered 6 exits: [*Mat x3] / *Min x2 / *Sub) -10/Subcaves (discovered 3 exits: [*Mat x2] / *Rec) -7/Recycling (discovered 2 exits: *Fac / *Scr) -7/Scraptown -5/Factory (discovered 2 exits: *Fac x2) -4/Factory (discovered 2 exits: *Res / *Upp) -4/Upper Caves -4/Upper Caves -4/Zhirov -3/Proximity Caves -3/Research (discovered 6 exits: *Res x3 / *Arm / Tes x2) -3/Armory -3/Lab -2/Research (discovered 5 exits: *Acc x3 / *Qua x2) -2/Quarantine (discovered 2 exits: *Sec / [*Frg]) -2/Section 7 -1/Access (discovered 2 exits: [Sur] / *Com) -1/Command To Fleet Rendezvous History --------- Turn | Location | Event 7 | -11/Scrapyard | Discovered new exit (range 14) 70 | -11/Scrapyard | Entered Materials 313 | -10/Materials | Build established: Mutant 316 | -10/Materials | Discovered new exit (range 10) 382 | -10/Materials | Repaired EM Pulse Gun 538 | -10/Materials | Discovered new exit (range 7) 560 | -10/Materials | Discovered new exit (range 13) 670 | -10/Materials | Loaded intel: 14 trap records 735 | -10/Materials | Learned Materials trap positions 789 | -10/Materials | Learned 2 Storage zone layouts 842 | -10/Materials | Discovered new exit (range 16) 869 | -10/Materials | Learned location of 1 exit from Storage 895 | -10/Materials | Learned 4 Subcaves zone layouts 978 | -10/Materials | Identified exit to Subcaves 978 | -10/Materials | Identified exit to Mines 1025 | -10/Materials | Learned Storage security intel 1081 | -10/Materials | Learned location of 1 exit from Storage 1223 | -10/Materials | Entered Subcaves 1224 | -10/Subcaves | Identified exit to Recycling 1401 | -10/Subcaves | Lost 3 parts (1u2w) 1861 | -10/Subcaves | Discovered new exit (range 16) 1942 | -10/Subcaves | Visited Clippyterm 1945 | -10/Subcaves | Learned Factory trap positions 2345 | -10/Subcaves | Learned Materials non-interactive machine intel 2353 | -10/Subcaves | A swath of the cavern ceiling suddenly collapsed 2420 | -10/Subcaves | Shifting Twisted Machinery released Sub. Shrapnel Launcher 2427 | -10/Subcaves | Shifting Twisted Machinery released Sub. Machine Gun 2470 | -10/Subcaves | Learned location of Zion (-6) 2515 | -10/Subcaves | Build established: Subdweller-Mutant 2539 | -10/Subcaves | Shifting Twisted Machinery released Mak. Light Armor Plating 2626 | -10/Subcaves | Disturbed a concealed Subdweller 2771 | -10/Subcaves | Discovered new exit (range 13) 2893 | -10/Subcaves | A swath of the cavern ceiling suddenly collapsed 2988 | -10/Subcaves | Visited 4L-MR0's lab 3056 | -10/Subcaves | Found Rainbow Chip 3180 | -10/Subcaves | Ambushed by angry Subdweller bent on revenge 3297 | -10/Subcaves | Ambushed by Subdweller buried in earth 3519 | -10/Subcaves | A Subdweller sparked back to life 3519 | -10/Subcaves | A Subdweller sparked back to life 3519 | -10/Subcaves | A Subdweller sparked back to life 3567 | -10/Subcaves | Found Flightbrick 3649 | -10/Subcaves | Disturbed a concealed Subdweller 3668 | -10/Subcaves | Core integrity fell below 50% 3840 | -10/Subcaves | Entered Recycling 3855 | -7/Recycling | Build established: Scavenger-Mutant 4227 | -7/Recycling | Discovered new exit (range 7) 4456 | -7/Recycling | Scanned before Scraplab entrance 4481 | -7/Recycling | Entered Scraplab 4495 | -7/Recycling | Discovered new exit (range 2) 4496 | -7/Recycling | Entered Scraptown 4628 | -7/Scraptown | Scanned Subdweller tech in exchange for log data 4631 | -7/Scraptown | Learned location of 1 exit from Factory 4633 | -7/Scraptown | Learned location of Extension (-5) 4635 | -7/Scraptown | Learned Factory emergency access door positions 4636 | -7/Scraptown | Learned location of 2 exits from Lower Caves 4638 | -7/Scraptown | Learned location of 1 exit from Research 4685 | -7/Scraptown | Visited Shadow of the Wyrm 4706 | -7/Scraptown | Visited IN-MT5's Study 4731 | -7/Scraptown | Visited UFD Registry 4731 | -7/Scraptown | Registered with UFD as "Hardslasher" 4864 | -7/Scraptown | Visited Scrapoid Pod Storage 4906 | -7/Scraptown | Visited Sword Containment 4924 | -7/Scraptown | Found Prototype Slashing Weapon 4924 | -7/Scraptown | Identified Companion Sword 4989 | -7/Scraptown | Delivered Scrap Shield to a Scientist 5095 | -7/Scraptown | Visited Observation Area 5156 | -7/Scraptown | Visited Fellowship of the Rings 5193 | -7/Scraptown | Visited CR-KLE's Repair Center 5205 | -7/Scraptown | Visited Cyclists 5234 | -7/Scraptown | Build established: Mutant 5543 | -7/Scraptown | Visited Infowarlord's Domain 5556 | -7/Scraptown | Found Spectral Analyzer 5602 | -7/Scraptown | Visited DA-N13 Charitable Foundation 5613 | -7/Scraptown | Found DCF Scrap (26 items) 5650 | -7/Scraptown | Visited A0-MCA Data Center 5658 | -7/Scraptown | Given a C- rating by A0-MCA 5663 | -7/Scraptown | Found A0-MCA's Component Scanner 6136 | -7/Scraptown | Met Optimus 6136 | -7/Scraptown | Accepted into 0bPrime 6187 | -7/Scraptown | Visited LU-1G1's Boring Crew 6434 | -7/Scraptown | Civil war broke out across Scraptown 6445 | -7/Scraptown | Found Prototype Special Weapon 6445 | -7/Scraptown | Identified LU-1G1's Laser Shovel 6481 | -7/Scraptown | Lost 3 allies 6490 | -7/Scraptown | Discovered new exit (range 5) 6497 | -7/Scraptown | Entered Factory 6497 | -5/Factory | Evolved 10 slots: Propulsion x5, Utility x5 6498 | -5/Factory | Identified exit to Factory 6498 | -5/Factory | Attached Flightbrick, gained temporary slots: Utility x3 6499 | -5/Factory | Loaded intel: 79 trap records 6500 | -5/Factory | Attached Rainbow Chip, gained temporary slots: Power, Propulsion, Utility, Weapon 6509 | -5/Factory | Hacking Suite fried by hacking feedback 6526 | -5/Factory | Lost 5 allies 6579 | -5/Factory | Spotted B-75 Beast 6601 | -5/Factory | Discovered exit to Factory (range 4) 6608 | -5/Factory | Entered another Factory area 6608 | -4/Factory | Evolved 2 slots: Utility x2 6691 | -4/Factory | Discovered new exit (range 8) 6693 | -4/Factory | Identified exit to Research 6732 | -4/Factory | Found Prototype Device 6732 | -4/Factory | Identified Adv. EM Shield 6735 | -4/Factory | Found Adv. EM Shield 6934 | -4/Factory | Loaded intel: 8 recycling unit locations 6952 | -4/Factory | Spotted B-86 Titan 6976 | -4/Factory | Learned location of Protoforge (-2) 7308 | -4/Factory | Lost 7 parts (1p5n1u) 7398 | -4/Factory | Scrapoid reinforcements arrived 7457 | -4/Factory | P-70 Sage assimilated allied 04F05-D 7487 | -4/Factory | Found Scrap Suit 7503 | -4/Factory | Lost 4 allies 7633 | -4/Factory | Discovered new exit (range 16) 7689 | -4/Factory | Identified exit to Upper Caves 7690 | -4/Factory | Entered Upper Caves 7692 | -4/Upper Caves | UFD Scientist delivered a prototype 7694 | -4/Upper Caves | Found Prototype Protection 7694 | -4/Upper Caves | Identified Enh. Scrap Shield 7791 | -4/Upper Caves | Build established: Scavenger-Mutant 8058 | -4/Upper Caves | Lost 4 parts (1p1n2u) 8114 | -4/Upper Caves | Build established: Scavenger-Scrapper 8189 | -4/Upper Caves | Spotted B-86 Titan 8236 | -4/Upper Caves | Discovered new exit (range 9) 8285 | -4/Upper Caves | Entered another Upper Caves area 8328 | -4/Upper Caves | Found Alien Artifact 8378 | -4/Upper Caves | Attracted the attention of an 0b10 outpost 8380 | -4/Upper Caves | System corruption reached 10% 8450 | -4/Upper Caves | Encountered a Warlord checkpoint 8469 | -4/Upper Caves | Discovered new exit (range 8) 8475 | -4/Upper Caves | Entered Zhirov 8475 | -4/Zhirov | Discovered new exit (range 3) 8489 | -4/Zhirov | Met Zhirov 8507 | -4/Zhirov | Found Alien Artifact 8507 | -4/Zhirov | Identified Integrated Dissipator 8507 | -4/Zhirov | Installed Integrated Dissipator, increased core heat dissipation (+20) 8517 | -4/Zhirov | Found Alien Artifact 8609 | -4/Zhirov | Learned location of Quarantine (-2) 8609 | -4/Zhirov | Learned location of Testing (-3) 8609 | -4/Zhirov | Learned location of Command (-1) 8614 | -4/Zhirov | Zhirov requested help retrieving the SGEMP Prototype 8638 | -4/Zhirov | Entered Proximity Caves 8659 | -3/Proximity Caves | Attracted the attention of an 0b10 checkpoint 8666 | -3/Proximity Caves | Core integrity fell below 50% 8836 | -3/Proximity Caves | Build established: Hacker-Mutant 9050 | -3/Proximity Caves | Discovered exit to Research (range 9) 9058 | -3/Proximity Caves | Entered Research 9058 | -3/Research | Evolved 2 slots: Power x1, Propulsion x1 9059 | -3/Research | Identified exit to Research 9092 | -3/Research | Loaded intel: 5 recycling unit locations 9220 | -3/Research | Lost 9 parts (5n4u) 9399 | -3/Research | Spotted B-86 Titan 9413 | -3/Research | Discovered exit to Research (range 8) 9452 | -3/Research | Identified exit to Armory 9452 | -3/Research | Identified exit to Testing 9482 | -3/Research | Discovered exit to Research (range 13) 9542 | -3/Research | Found Prototype Device 9542 | -3/Research | Identified Exp. Thermal Shield 9588 | -3/Research | Entered Armory 9623 | -3/Armory | Build established: Scavenger-Scout 9925 | -3/Armory | Spotted B-86 Titan 9939 | -3/Armory | Allies destroyed B-86 Titan 10001 | -3/Armory | Lost 5 allies 10088 | -3/Armory | First assault squad dispatched 10144 | -3/Armory | Scrapoids reinforcements arrived? 10182 | -3/Armory | Lost 5 allies 10197 | -3/Armory | Assisted by bots powering up and referring to "LRC-V3" 10200 | -3/Armory | Discovered new exit (range 5) 10264 | -3/Armory | Spotted Armor Guard 10264 | -3/Armory | Spotted Armor Guard 10283 | -3/Armory | Destroyed Armor Guard 10287 | -3/Armory | Allies destroyed Armor Guard 10288 | -3/Armory | Found Prototype Device 10288 | -3/Armory | Identified Exp. Weapon Cycler 10297 | -3/Armory | Spotted Armor Guard 10304 | -3/Armory | Spotted Armor Guard 10318 | -3/Armory | Allies destroyed Armor Guard 10332 | -3/Armory | High security lockdown imminent 10332 | -3/Armory | Destroyed Armor Guard 10339 | -3/Armory | Build established: Commander-Ninja 10412 | -3/Armory | High security lockdown engaged 10514 | -3/Armory | P-80 Master assimilated allied 03A10-D 10579 | -3/Armory | Spotted Executioner 10587 | -3/Armory | Identified exit to Lab 10588 | -3/Armory | Entered Lab 10588 | -3/Lab | Discovered exit to Research (range 10) 10591 | -3/Lab | Unable to decrypt terminal 10591 | -3/Lab | Opened the door to a hidden lab 10592 | -3/Lab | Gained access to the hidden lab's interior 10592 | -3/Lab | Detected by scanners 10600 | -3/Lab | Found Prototype Device 10600 | -3/Lab | Identified AEGIS Remote Shield 10604 | -3/Lab | Lost 15 allies 10606 | -3/Lab | Confronted by A5 10651 | -3/Lab | Destroyed A5 10655 | -3/Lab | Found Prototype Protection 10655 | -3/Lab | Identified Med. Regenerative Plating 10659 | -3/Lab | Found Alien Artifact 10659 | -3/Lab | Identified Core Reset Matrix 10659 | -3/Lab | Identified Transdimensional Reconstructor 10659 | -3/Lab | Identified Dimensional Node Initializer 10659 | -3/Lab | Used Core Reset Matrix 10663 | -3/Lab | Sensed 3 artifacts in vicinity 10666 | -3/Lab | Found Core Expander 10666 | -3/Lab | Installed Core Expander, added new Propulsion slot 10675 | -3/Lab | Found Integrated Mediator 10675 | -3/Lab | Installed Integrated Mediator, increased core attachment efficiency 10681 | -3/Lab | Found Deep Network Scanner 10692 | -3/Lab | Found Transdimensional Reconstructor 10692 | -3/Lab | Warped through subspace 10754 | -3/Lab | Found Exp. System Shield 10758 | -3/Lab | Discovered exit to Research (range 9) 10946 | -3/Lab | Build established: Hacker-Sprinter 11065 | -3/Lab | Entered Research 11065 | -2/Research | Evolved 2 slots: Propulsion x1, Utility x1 11106 | -2/Research | Spotted B-90 Cyclops 11164 | -2/Research | Discovered new exit (range 6) 11166 | -2/Research | Identified exit to Access 11213 | -2/Research | Discovered exit to Access (range 10) 11285 | -2/Research | Loaded intel: 5 recycling unit locations 11286 | -2/Research | Intercept squad dispatched 11305 | -2/Research | Spotted Tracker 11305 | -2/Research | Spotted Tracker 11314 | -2/Research | Destroyed Tracker 11315 | -2/Research | Search patrols dispatched 11319 | -2/Research | Destroyed Tracker 11345 | -2/Research | Spotted Combat Programmer 11372 | -2/Research | Spotted Combat Programmer 11415 | -2/Research | Lost 6 parts (1p2n3u) 11445 | -2/Research | Scrapoids reinforcements arrived? 11447 | -2/Research | Allies destroyed Combat Programmer 11452 | -2/Research | P-80 Master assimilated allied 02R15-D 11456 | -2/Research | P-80 Master assimilated allied 02R12-D 11492 | -2/Research | Scrapoids reinforcements arrived? 11501 | -2/Research | Lost 4 parts (4n) 11565 | -2/Research | Intercept squad dispatched 11579 | -2/Research | Identified exit to Quarantine 11601 | -2/Research | Spotted Tracker 11601 | -2/Research | Warped through subspace 11624 | -2/Research | Discovered exit to Access (range 12) 11726 | -2/Research | Repaired Impulse Thruster Array+ 11776 | -2/Research | Spotted B-90 Cyclops 11778 | -2/Research | Entered Quarantine 11779 | -2/Quarantine | Detected hypermatrix surge 11779 | -2/Quarantine | Sensed 7 artifacts in vicinity 11783 | -2/Quarantine | Found Core Reset Matrix 11785 | -2/Quarantine | Sensed 6 artifacts in vicinity 11812 | -2/Quarantine | Found Sigix Broadsword 11821 | -2/Quarantine | Found Subatomic Replicator 11870 | -2/Quarantine | Spotted Fortress 11893 | -2/Quarantine | Discovered new exit (range 5) 11893 | -2/Quarantine | Discovered new exit (range 6) 11894 | -2/Quarantine | Identified exit to Section 7 11894 | -2/Quarantine | Entered Section 7 11895 | -2/Section 7 | Forged Quantum Companion 11895 | -2/Section 7 | Detected hypermatrix surge 11895 | -2/Section 7 | Sensed 20 artifacts in vicinity 11897 | -2/Section 7 | Forged Prototype Slashing Weapon 11903 | -2/Section 7 | Found Spacefold Activator 11940 | -2/Section 7 | Spotted S7 Guard 11941 | -2/Section 7 | Found Core Membrane 11941 | -2/Section 7 | Installed Core Membrane, gained immunity to corruption 11948 | -2/Section 7 | Spotted S7 Guard 11949 | -2/Section 7 | Found Core Physics Calibrator 11958 | -2/Section 7 | Spotted S7 Guard 11959 | -2/Section 7 | Found Integrated Thermoelectric Network 11959 | -2/Section 7 | Installed Integrated Thermoelectric Network, gained heat-energy exchange potential 11986 | -2/Section 7 | Found Integrated Dissipator 11986 | -2/Section 7 | Installed Integrated Dissipator, increased core heat dissipation (+20) 12008 | -2/Section 7 | Core integrity fell below 50% 12012 | -2/Section 7 | Spotted Alpha 7 12012 | -2/Section 7 | Spotted B-99 Colossus 12025 | -2/Section 7 | Found Transdimensional Reconstructor 12026 | -2/Section 7 | Found Hpw. Transdimensional Reconstructor 12045 | -2/Section 7 | Integrated with Sigix Exoskeleton 12107 | -2/Section 7 | Found LRC Armor 12107 | -2/Section 7 | Installed LRC Armor, increased core integrity (+250) 12110 | -2/Section 7 | Found LRC Insulator 12110 | -2/Section 7 | Installed LRC Insulator, 1 resistance modified: EM +25% 12112 | -2/Section 7 | Found LRC Insulator 12112 | -2/Section 7 | Installed LRC Insulator, 1 resistance modified: EM +25% 12133 | -2/Section 7 | Intercept squad dispatched 12138 | -2/Section 7 | Spotted Alpha 7 12141 | -2/Section 7 | Spotted Tracker 12142 | -2/Section 7 | Warped through subspace 12149 | -2/Section 7 | Found Terrabomb 12153 | -2/Section 7 | Spotted Executioner 12153 | -2/Section 7 | Spotted Executioner 12161 | -2/Section 7 | Destroyed Executioner 12171 | -2/Section 7 | Destroyed Executioner 12202 | -2/Section 7 | Discovered exit to Access (range 18) 12202 | -2/Section 7 | Destroyed Tracker 12204 | -2/Section 7 | Found Prototype Device 12204 | -2/Section 7 | Identified Exp. Phase Shifter 12222 | -2/Section 7 | Spotted Tracker 12242 | -2/Section 7 | Entered Access 12242 | -1/Access | Evolved 2 slots (calibrated): Utility x3, -Weapon x1 12247 | -1/Access | Emitted hypermatrix ping 12252 | -1/Access | Assembled emerged from beneath the floor 12342 | -1/Access | Assembled emerged from beneath the floor 12356 | -1/Access | Spotted B-99 Colossus 12357 | -1/Access | Build established: Alien-Sigix 12382 | -1/Access | Assembled emerged from beneath the floor 12444 | -1/Access | Found Unknown Device 12444 | -1/Access | Identified Quantum Capacitor 12511 | -1/Access | Spotted B-99 Colossus 12526 | -1/Access | Assembled emerged from beneath the floor 12552 | -1/Access | Found Unknown Device 12552 | -1/Access | Identified Launcher Loader 12564 | -1/Access | Found Unknown Device 12564 | -1/Access | Identified Heavy Servo Lattice 12585 | -1/Access | Intercept squad dispatched 12626 | -1/Access | Spotted Tracker 12629 | -1/Access | Spotted Tracker 12637 | -1/Access | Destroyed Tracker 12642 | -1/Access | Destroyed Tracker 12645 | -1/Access | Found Exp. Phase Shifter 12704 | -1/Access | Spotted Combat Programmer 12711 | -1/Access | Destroyed Combat Programmer 12721 | -1/Access | Assembled emerged from beneath the floor 12740 | -1/Access | Spotted Combat Programmer 12768 | -1/Access | Destroyed Combat Programmer 12840 | -1/Access | Assembled emerged from beneath the floor 12867 | -1/Access | Discovered new exit (range 18) 12886 | -1/Access | Lost 7 allies 12896 | -1/Access | Intercept squad dispatched 12907 | -1/Access | Spotted Tracker 12909 | -1/Access | Destroyed Tracker 12909 | -1/Access | Spotted Tracker 12909 | -1/Access | Spotted Tracker 12914 | -1/Access | Destroyed Tracker 12920 | -1/Access | Destroyed Tracker 12932 | -1/Access | Spotted Combat Programmer 12951 | -1/Access | Spotted Combat Programmer 12957 | -1/Access | Spotted Combat Programmer 12985 | -1/Access | Discovered new exit (range 17) 13011 | -1/Access | Destroyed Combat Programmer 13013 | -1/Access | Destroyed Combat Programmer 13033 | -1/Access | Assembled emerged from beneath the floor 13072 | -1/Access | Lost 3 allies 13098 | -1/Access | Spotted Investigator 13105 | -1/Access | Assembled emerged from beneath the floor 13116 | -1/Access | Destroyed Combat Programmer 13118 | -1/Access | Found Prototype Device 13131 | -1/Access | Identified Exp. Focal Shield 13144 | -1/Access | Lost 3 allies 13148 | -1/Access | Found Unknown Device 13148 | -1/Access | Identified Adv. Force Booster 13166 | -1/Access | Scanned by Researcher 13184 | -1/Access | Garrison activated, responded to threat 13185 | -1/Access | Destroyed Investigator 13203 | -1/Access | Assembled emerged from beneath the floor 13248 | -1/Access | Lost 4 allies 13270 | -1/Access | Spotted Executioner 13287 | -1/Access | Destroyed Executioner 13298 | -1/Access | Intercept squad dispatched 13311 | -1/Access | Spotted Tracker 13311 | -1/Access | Spotted Tracker 13312 | -1/Access | Spotted Tracker 13314 | -1/Access | Spotted Tracker 13317 | -1/Access | Destroyed Tracker 13318 | -1/Access | Destroyed Tracker 13324 | -1/Access | Destroyed Tracker 13327 | -1/Access | Destroyed Tracker 13342 | -1/Access | Spotted Combat Programmer 13343 | -1/Access | Spotted Combat Programmer 13344 | -1/Access | Spotted Combat Programmer 13347 | -1/Access | Spotted Combat Programmer 13373 | -1/Access | Spotted B-99 Colossus 13373 | -1/Access | Spotted B-99 Colossus 13377 | -1/Access | Rewired B-99 Colossus 13407 | -1/Access | Spotted B-99 Colossus 13417 | -1/Access | Destroyed Combat Programmer 13442 | -1/Access | Sigix Exoskeleton integrity reduced to 80% 13444 | -1/Access | Destroyed B-99 Colossus 13469 | -1/Access | Spotted Investigator 13470 | -1/Access | Spotted Executioner 13470 | -1/Access | Spotted Executioner 13472 | -1/Access | Spotted Executioner 13472 | -1/Access | Spotted Striker 13472 | -1/Access | Spotted Executioner 13472 | -1/Access | Spotted Executioner 13472 | -1/Access | Spotted Executioner 13472 | -1/Access | Spotted Executioner 13474 | -1/Access | Spotted Executioner 13474 | -1/Access | Spotted Executioner 13478 | -1/Access | Spotted Executioner 13491 | -1/Access | Destroyed Striker 13502 | -1/Access | Destroyed Combat Programmer 13506 | -1/Access | Destroyed Combat Programmer 13519 | -1/Access | Destroyed Executioner 13531 | -1/Access | Destroyed Executioner 13542 | -1/Access | Rewired Executioner 13622 | -1/Access | Destroyed Executioner 13643 | -1/Access | Destroyed Executioner 13661 | -1/Access | Core integrity fell below 50% 13684 | -1/Access | Destroyed Combat Programmer 13703 | -1/Access | Destroyed Executioner 13717 | -1/Access | Destroyed Investigator 13754 | -1/Access | Destroyed Executioner 13802 | -1/Access | Sterilization system engaged 13810 | -1/Access | Destroyed 62 combat bots 13821 | -1/Access | Destroyed Executioner 13837 | -1/Access | Sigix Exoskeleton integrity reduced to 60% 13868 | -1/Access | Spotted Striker 13868 | -1/Access | Spotted Executioner 13871 | -1/Access | Destroyed Executioner 13875 | -1/Access | Spotted Executioner 13888 | -1/Access | Sigix Exoskeleton integrity reduced to 40% 13900 | -1/Access | Entered Command 13901 | -1/Command | Emitted hypermatrix ping 13906 | -1/Command | Assembled emerged from beneath the floor 13919 | -1/Command | Destroyed 13 combat bots 13993 | -1/Command | Assembled emerged from beneath the floor 14028 | -1/Command | Assembled emerged from beneath the floor 14052 | -1/Command | Assembled emerged from beneath the floor 14117 | -1/Command | Core integrity fell below 20% 14123 | -1/Command | High security lockdown imminent 14173 | -1/Command | Spotted M Guard 14173 | -1/Command | Spotted M Guard 14173 | -1/Command | Spotted Combat Programmer 14176 | -1/Command | Spotted Combat Programmer 14186 | -1/Command | Destroyed 11 combat bots 14197 | -1/Command | Destroyed M Guard 14203 | -1/Command | High security lockdown engaged 14214 | -1/Command | Destroyed M Guard 14217 | -1/Command | Destroyed Combat Programmer 14224 | -1/Command | Destroyed Combat Programmer 14224 | -1/Command | All MAIN.C guards destroyed 14253 | -1/Command | Discovered new exit (range 16) 14271 | -1/Command | Assembled emerged from beneath the floor 14295 | -1/Command | Assembled emerged from beneath the floor 14319 | -1/Command | Assembled emerged from beneath the floor 14351 | -1/Command | Failed to warp due to unstable space 14365 | -1/Command | Spotted Alpha 7 14365 | -1/Command | Spotted Striker 14365 | -1/Command | Spotted Executioner 14365 | -1/Command | Spotted Executioner 14365 | -1/Command | Spotted Alpha 7 14365 | -1/Command | Spotted Striker 14365 | -1/Command | Spotted Executioner 14365 | -1/Command | Spotted Executioner 14365 | -1/Command | Spotted B-99 Colossus 14367 | -1/Command | Spotted B-99 Colossus 14370 | *** | Heading to fleet! Last Messages --------------- 14366_ Slug penetrates Alpha 7. 14366_ Slug penetrates Executioner. 14366_ Slug penetrates Alpha 7. 14367_ Penetrated by Slug. 14367_ Slug penetrates Wall. 14367_ Penetrated by Slug. 14367_ Slug penetrates Wall. 14368_ The Access Shell folds into the floor. 14368_ Knocked back. 14368_ Penetrated by Slug. 14368_ Slug penetrates Wall. Superquantum Companion releases a shadow of itself that zips off towards B-99 Colossus. 14369_ Executioner knocked back. 14369_ Slug penetrates Wall. 14369_ Slug penetrates Reinforced Barrier. 14369_ Slug penetrates Wall. 14369_ Slug penetrates Reinforced Barrier. 14369_ Slug penetrates Wall. [Achievement: By A Hair] Map ----- +----------------------------------------------------+ | "" #### # # ##### ##### | | #### """" # # #####=##### | | #### """" # # ##### ##### | | #### """" # # ##### ##### | | #### """" + + ##### ##### | | #### # # ##### ##### | | ######+####### # #* ##### ##### | | # * "######### "########+####### ##### | | # ##########"+""####### ## ##### | | # "" ######### ###### ## ##### | | # ! """ ######### ###### ## ##### | | # T" ######## %##### # !#### | | # """ #########7 ###### + #### | | # "" ######## 7 ##### # = #### | | # = #########K KE### ## ## ##### | | # ######## E% ^ ##### ## ##### | | # #########E ###### ! ## ##### | | # ######## ^ % E############### ##### | | ###+###+####"#######;; ################ ##### | | # ###"#####BB BB############# ##### | | # !! ## ###BB BB############ #### | | # ! ## ### % ############ " | | # ## ### ############ #### | | + Y# ### ;################## | | # ## ### "" ################### | | # ""T"" ## ### "X ################### | | # """"" ## ### ################### | | ########/### ### ################### | | ######## ### ### ^ ################### | | ######## #####+#### ################### | | ########+##### #### ################### | | ##### !# ################################### | | ##### # ################################### | | ##### # ################################### | | ##### # ################################### | | ##### """" # # **########################### | | ##### """" # + * + ####################### | | # """" # # ### ####################### | | / """" # ########### ####################### | | ## # + #######+####################### | | ## # # # "" ################## | | ## # "" / + """" ################## | | ## + """" # # """" ""################## | | ## # """" # # "" ""################## | | ## ## "" # # T"################## | | ## ## # # ""################## | | ## ## # + ""################## | | ## ## # # * ################## | | ##%## # + ################## | | ##+########### # ################## | +----------------------------------------------------+ Best States ------------- Heat Dissipation 172 Energy Generation 73 Energy Capacity 590 Matter Stores 300 Matter Capacity 300 Sight Range 24 Robot Scan Range 18 Terrain Scan Range 24 Terrain Scan Density 210 Jamming Range 16 Cloak Strength 5 Additional Mass Support 20 Armor Coverage 1025 Resistance: KI 50 Resistance: TH 50 Resistance: EX 50 Resistance: EM 100 Resistance: I 50 Resistance: S 50 Resistance: P 50 Power Shielding 90 Propulsion Shielding 33 Weapon Cycling 25 Melee Speed Boost 30 Phase Shifting 20 Evasion (%) 99 Targeting Accuracy 5 Melee Accuracy 24 Armor Integrity Analysis 30 Recoil Reduction 2 Force Boost 40 Offensive Hacking 35 Defensive Hacking 16 Item Schematics ----------------- Quantum Reactor | -2/Section 7 | Hacked Robot Schematics ------------------ None Fabricated ------------ Nothing Repaired ---------- EM Pulse Gun | 13% | -10/Materials Impulse Thruster Array | 17% | -2/Research Studied --------- Impulse Thruster Array | -2/Section 7 | Hacked Nuclear Pulse Array | -2/Section 7 | Hacked Alien Tech Used ----------------- Integrated Dissipator Core Reset Matrix Core Expander Integrated Mediator Transdimensional Reconstructor Subatomic Replicator Core Membrane Spacefold Activator Integrated Thermoelectric Network Sigix Exoskeleton Sigix Sheargun Core Physics Calibrator LRC Armor LRC Insulator High-powered Transdimensional Reconstructor Achievements -------------- By A Hair Incoming! Challenges ------------ None Game ------ Seed ProjectionSigixShielding Manual? 0 Play Time 04:06:01 Cumulative 726.2 hours Start 2025.11.30 @ 12:40:25 End 2025.11.30 @ 18:39:21 Sessions 3 Manual Loads 0 Difficulty Rogue Special Mode None Game No. 309 Rogue 309 Adventurer 0 Explorer 0 Win Type 2 Total 74 Types 38/5/12/5/6/1/1/3/0/3 Lore% 97 Gallery% 90 Achievement% 81 Wizard Run 0 Options --------- Layout 1 ASCII 0 Keyboard 0 Movement Numpad Keybinds 0 Fullscreen 1 Font 24/Smallcaps Map View 50x35 Zoom Use 0% Tactical HUD 1 Map Filters NONE Filters NONE Steam 1 RUN: 97fc2ed8-a6b6-43ff-ab0c-300aa5c889ed